Cogmind - Beta 15 @@@ ROGUE MODE // 2025.08.13 @ 13:50:55 Player: Infomantis Result: Destroyed by Optimus with Helical Railgun Performance ------------- Evolutions (2) 1000 Regions Visited (7) 1400 Robots Destroyed (97) 485 Value Destroyed (2852) 2852 Prototype IDs (24) 480 Alien Tech Used (0) 0 Bonus (446) 446 TOTAL SCORE: 6663 Bonus ------- High Alert Combat Kills 139 Follower Combat Kills 7 Registered with UFD 300 Cogmind --------- Core Integrity 0/550 Matter 230/300 Energy 100/100 System Corruption 4% Temperature Cool (0) Movement Core (50) Location -8/Scraptown Parts ------- > --- POWER (1) -------- (None) > --- PROPULSION (4) --- (None) > --- UTILITY (3) ------ (None) > --- WEAPON (3) ------- (None) > --- INVENTORY (5) ---- Wheel Hacking Suite Hacking Suite Heavy EM Pulse Gun Improved Proton Missile Launcher Peak State ------------ > --- POWER ------------ Reinforced Ion Engine > --- PROPULSION ------- Advanced Treads Carbon-fiber Leg Titanium Leg Titanium Leg > --- UTILITY ---------- Improved Heat Sink Large Storage Unit Improved Utility Shielding > --- WEAPON ----------- Heavy Particle Gun Heavy Particle Gun Shotgun > --- INVENTORY -------- Improved Ion Engine Light Angular Momentum Engine Armored Treads Compact Matter Pod Machine Analyzer Seismic Detector Seismic Detector Improved Utility Shielding Heavy Armor Plating Heavy EM Pulse Gun Shotgun Assault Cannon Shock Bomb Launcher Shock Bomb Launcher [Rating: 35] Favorites ----------- Power Light Angular Momentum Engine Engine Light Angular Momentum Engine Propulsion Light Treads Treads Light Treads Leg Titanium Leg Wheel Compact Wheel Utility Hacking Suite Device Seismic Detector Storage Huge Storage Unit Hackware Hacking Suite Protection Improved Utility Shielding Weapon Powered Hammer Energy Gun Heavy Particle Gun Energy Cannon Advanced Beam Cannon Ballistic Gun Shotgun Launcher Shock Bomb Launcher Impact Weapon Powered Hammer Special Melee Weapon Datajack Build | -11 -10 -10 -9 -8 -8 -8 -8 ------- Run | Yrd Mat Min Mat Mat Sto Rec Scr Slots Evolved 4 | . . . 2 2 . . . Power . | . . . . . . . . Propulsion 2 | . . . 1 1 . . . Utility 1 | . . . 1 . . . . Weapon 1 | . . . . 1 . . . Parts Attached 77 | 7 3 1 14 34 8 6 4 Power 7 | 1 1 . 2 2 1 . . Engine 7 | 1 1 . 2 2 1 . . Core . | . . . . . . . . Reactor . | . . . . . . . . Propulsion 23 | 2 . 1 4 12 3 1 . Treads 12 | 2 . 1 . 7 1 1 . Leg 7 | . . . 4 3 . . . Wheel 4 | . . . . 2 2 . . Hover . | . . . . . . . . Flight . | . . . . . . . . Utility 21 | 2 . . 3 9 2 3 2 Device 9 | 1 . . 1 5 2 . . Storage 4 | 1 . . 1 1 . 1 . Processor . | . . . . . . . . Hackware 3 | . . . . . . 2 1 Protection 5 | . . . 1 3 . . 1 Artifact . | . . . . . . . . Weapon 26 | 2 2 . 5 11 2 2 2 Energy Gun 12 | 2 2 . 1 6 . . 1 Energy Cannon 3 | . . . . 2 . . 1 Ballistic Gun 5 | . . . 3 1 . 1 . Ballistic Cannon . | . . . . . . . . Launcher 2 | . . . . 2 . . . Special Weapon . | . . . . . . . . Impact Weapon 3 | . . . 1 . 1 1 . Slashing Weapon . | . . . . . . . . Piercing Weapon . | . . . . . . . . Special Melee Weapon 1 | . . . . . 1 . . Unidentified Prototypes 4 | . . . . 4 . . . Corrupted Parts 1 | . . . . . . . 1 System Corruption 1 | . . . . . . . 1 Parts Lost 20 | . 1 3 1 8 2 . 5 Power . | . . . . . . . . Propulsion 12 | . . 2 . 4 2 . 4 Utility 2 | . . . . 2 . . . Weapon 6 | . 1 1 1 2 . . 1 Highest Loss Streak 7 | . 1 2 1 7 1 . 5 To Critical Strikes . | . . . . . . . . Average Backups 15 | 4 7 7 5 13 14 18 22 Power . | . . . . 1 1 1 . Propulsion 1 | . 2 2 1 . . . 1 Utility 8 | . 3 2 2 5 6 11 14 Weapon 4 | 1 2 1 1 6 6 5 5 Tool/Special . | . . . . . . . . Unused Backups 25 | 1 1 2 3 7 . . 11 Power 2 | . . . . 1 . . 1 Propulsion 4 | . . 1 1 2 . . . Utility 13 | 1 . 1 . 2 . . 9 Weapon 6 | . 1 . 2 2 . . 1 Tool/Special . | . . . . . . . . Average Slot Usage (%) 96 | . 99 88 87 97 91 100 95 Engine 9 | . 14 10 2 9 8 9 8 Treads 15 | . 27 26 . 24 9 9 11 Leg 4 | . . . 32 10 2 . . Wheel 13 | . . . . . 16 27 24 Device 7 | . 14 14 17 8 18 9 . Storage 9 | . 14 10 4 9 9 9 8 Hackware 6 | . . . . . . 8 13 Protection 3 | . . . 10 8 . . 2 Energy Gun 9 | . 27 24 5 11 8 7 1 Energy Cannon 1 | . . . . 3 . . 1 Ballistic Gun 6 | . . . 11 11 15 14 . Impact Weapon 6 | . . . 3 . . 2 15 Special Melee Weapon 2 | . . . . . 1 2 6 Peak Build Rating 35 | 7 8 8 21 35 32 35 34 Average Rating 25 | 6 7 7 18 30 28 30 31 On Entrance 16 | . 7 8 3 21 32 30 32 Naked Turns 2 | . . . . . . . 2 Heaviest Build 113 | 14 15 15 24 48 41 99 113 Greatest Support 82 | 40 40 40 51 82 42 42 42 Greatest Overweight (x) 6 | . . . . 4 3 2 6 Average Overweight (x) 1 | . . . . . 1 1 2 Largest Inventory Capacity 25 | 8 8 8 8 15 15 25 25 Average Capacity 17 | 7 8 7 6 14 15 24 24 Most Carried 25 | 7 8 8 8 15 15 24 25 Average Carried 16 | 4 7 7 5 14 14 20 23 Final Capacity 25 | 8 8 5 8 15 15 25 5 Final Carried 24 | 7 8 4 8 15 15 24 5 Class Distribution -------------------- 35% | Commander-Mutant 27% | Mutant 15% | Tank 14% | Scavenger-Gunner 3% | Scavenger-Mutant Dominant Class ---------------- Mutant | -10/Materials Mutant | -10/Mines Mutant | -9/Materials Tank | -8/Materials Scavenger-Gunner | -8/Storage Scavenger-Gunner | -8/Recycling Commander-Mutant | -8/Scraptown Resources | -11 -10 -10 -9 -8 -8 -8 -8 ----------- Run | Yrd Mat Min Mat Mat Sto Rec Scr Matter Collected 2186 | 270 40 . 349 1036 309 138 44 Remotely . | . . . . . . . . Salvage Created 3848 | 209 310 87 487 1999 524 232 . Parts 215 | 27 28 3 29 94 27 7 . Haulers Intercepted 4 | . 1 . . 3 . . . Recyclers Shooed 2 | . 1 . . . 1 . . Parts Field Recycled . | . . . . . . . . Retrieved Matter . | . . . . . . . . Parts Self-Destructed . | . . . . . . . . Prevented . | . . . . . . . . Kills | -11 -10 -10 -9 -8 -8 -8 -8 ------- Run | Yrd Mat Min Mat Mat Sto Rec Scr Combat Hostiles Destroyed 65 | . 7 2 8 37 7 4 . Melee 2 | . . . 2 . . . . Guns 55 | . 7 2 5 30 7 4 . Cannons 5 | . . . . 5 . . . AOE 1 | . . . . 1 . . . Classes Destroyed 14 | 3 5 . 2 4 . . . Worker 3 | 1 . . 1 1 . . . Builder 8 | . 3 . 2 3 . . . Tunneler 8 | 8 . . . . . . . Hauler 4 | . 1 . . 3 . . . Recycler 5 | 1 . . 2 . 2 . . Operator 3 | . 1 . . . 2 . . Watcher 1 | . . . 1 . . . . Swarmer 10 | . 4 . 3 3 . . . Grunt 33 | . 3 2 3 19 4 2 . Brawler 1 | . . . . 1 . . . Duelist 1 | . . . . 1 . . . Sentry 15 | . . . 2 9 3 1 . Hunter 4 | . . . . 3 . 1 . Heavy 1 | . . . . 1 . . . Best Kill Streak 7 | 4 3 2 4 4 7 2 . Combat Bots Only 4 | . 3 2 4 4 4 2 . Max Kills in Single Turn 2 | 1 1 1 1 2 1 1 . Gunslinging 1 | . . . . 1 . . . Exploded 1 | . . . . 1 . . . Melee 1 | . . . 1 . . . . Uniques/NPCs Destroyed . | . . . . . . . . Combat | -11 -10 -10 -9 -8 -8 -8 -8 -------- Run | Yrd Mat Min Mat Mat Sto Rec Scr Hostile Shots Fired 487 | . 39 38 66 214 27 28 75 Missed 131 | . 10 11 11 57 9 5 28 Hits 356 | . 29 27 55 157 18 23 47 Melee 3 | . . . . 2 . . 1 Projectile 353 | . 29 27 55 155 18 23 46 AOE 9 | . . 9 . . . . . Critical Strikes 9 | . . . . 4 1 1 3 Damage Taken 5680 | . 279 567 510 2869 285 298 872 Core 875 | . 44 169 99 214 27 76 246 Absorbed by Shields . | . . . . . . . . Redirected to Shielding 46 | . . . 29 17 . . . Regen/Repaired (Parts) 56 | . 56 . . . . . . Core Remaining (%) 63 | 100 . 14 75 . . . . Volleys Fired 224 | 20 34 11 21 103 23 12 . Largest 3 | 2 2 2 2 3 3 3 . Hottest 171 | 80 90 90 46 171 114 98 . Shots Fired 544 | 40 67 22 39 272 67 37 . Gun 494 | 40 67 22 39 223 66 37 . Cannon 39 | . . . . 38 1 . . Launcher 11 | . . . . 11 . . . Special . | . . . . . . . . Kinetic 214 | . . . 39 106 44 25 . Thermal 254 | 20 33 11 . 155 23 12 . Explosive . | . . . . . . . . Electromagnetic 76 | 20 34 11 . 11 . . . Robot Hit Streak 17 | 8 11 5 6 17 10 12 . Robot Miss Streak 4 | 2 3 1 3 4 4 3 . Penetration Max . | . . . . . . . . Secondary Targets 7 | . 1 . . 3 3 . . Max Gunslinging Chain 1 | . 1 . . 1 1 . . Shots Hit Robots 372 | 24 40 15 34 192 41 23 3 Core Hits 182 | 11 17 6 23 95 23 7 . Critical Kills 1 | . . . . 1 . . . Critical Parts Destroyed 2 | . . . 2 . . . . Critical Strikes 13 | . 4 1 2 6 . . . Burn 9 | . 3 1 . 5 . . . Destroy 2 | . . . 1 1 . . . Corrupt 1 | . 1 . . . . . . Smash 1 | . . . 1 . . . . Melee Attacks 23 | . . . 18 . 2 . 3 Impact 20 | . . . 18 . 1 . 1 Slashing . | . . . . . . . . Piercing . | . . . . . . . . Sneak Attacks 4 | . . . . . 1 . 3 Combat Hostiles . | . . . . . . . . Follow-up Attacks . | . . . . . . . . Damage Inflicted 6886 | 280 649 226 567 4031 679 382 72 Guns 5312 | 280 558 192 387 2834 679 382 . Cannons 574 | . . . . 574 . . . Explosions 705 | . 82 . . 623 . . . Melee 252 | . . . 180 . . . 72 Ramming 43 | . 9 34 . . . . . Kinetic 2181 | . . . 387 1175 433 186 . Thermal 3273 | 163 321 114 . 2233 246 196 . Explosive . | . . . . . . . . Electromagnetic 1137 | 117 319 78 . 623 . . . Impact 252 | . . . 180 . . . 72 Slashing . | . . . . . . . . Piercing . | . . . . . . . . Highest Corruption 4 | . . . 1 2 2 2 4 Average Corruption 1 | . . . 1 2 2 2 1 Corruption Purged . | . . . . . . . . Corruption Blocked . | . . . . . . . . Effects 33 | . . . . 17 5 9 2 Message Errors 8 | . . . . 5 2 1 . Matter Fused 7 | . . . . 4 . 3 . Heat Flow Errors 4 | . . . . 1 1 1 1 Energy Discharges 6 | . . . . 4 . 2 . Data Loss (minor) 2 | . . . . 1 . . 1 Data Loss (major) 2 | . . . . . 2 . . Misfires 2 | . . . . 1 . 1 . Alerts 1 | . . . . . . 1 . Weapon Failures 1 | . . . . 1 . . . Overload Shots . | . . . . . . . . Overflow Damage 79 | . 2 . 44 1 . . 32 Projectiles 1 | . . . . 1 . . . Explosions 2 | . 2 . . . . . . Melee 76 | . . . 44 . . . 32 Knockbacks 1 | . . . . . . . 1 Impact 1 | . . . . . . . 1 Kinetic . | . . . . . . . . Secondary . | . . . . . . . . Self-Inflicted Damage 16 | . . 4 . 12 . . . Shots 2 | . . . . 2 . . . Rammed 12 | . 2 9 . 1 . . . Targets Rammed 13 | . 3 9 . 1 . . . Kicked . | . . . . . . . . Crushed 1 | . 1 . . . . . . Highest Temperature 284 | 90 164 212 5 284 166 180 217 Average Temperature 81 | 33 50 128 2 107 41 38 93 Received Heat Transfer 1539 | . 75 99 60 936 144 117 108 Effects 1 | . . . . 1 . . . Energy Bleed 1 | . . . . 1 . . . Siege Activations . | . . . . . . . . Martial Activations . | . . . . . . . . Shielding Activations . | . . . . . . . . Robots Disrupted . | . . . . . . . . Combat Hostiles . | . . . . . . . . Robots Corrupted 2 | . . . 1 1 . . . Combat Hostiles 2 | . . . 1 1 . . . Parts Fried 3 | . 2 . 1 . . . . Impact Corruptions 4 | . . . 3 . . . 1 Robots Melted . | . . . . . . . . Combat Hostiles . | . . . . . . . . Parts Melted 13 | . 1 1 . 9 . 2 . Heat Transferred 7468 | 375 1025 407 . 4810 481 370 . Parts Sabotaged . | . . . . . . . . Parts Stolen . | . . . . . . . . Parts Stripped . | . . . . . . . . Power Chain Reactions 2 | . 2 . . . . . . Alert | -11 -10 -10 -9 -8 -8 -8 -8 ------- Run | Yrd Mat Min Mat Mat Sto Rec Scr Maximum Alert Level 2 | . . . . 2 1 . . Low Security (%) 73 | 100 100 100 100 34 . 100 . Level 1 15 | . . . . 31 100 . . Level 2 10 | . . . . 34 . . . Level 3 . | . . . . . . . . Level 4 . | . . . . . . . . Level 5 . | . . . . . . . . High Security . | . . . . . . . . Max Security . | . . . . . . . . Peak Influence 617 | 15 115 40 93 617 369 147 . Initial 253 | . 6 21 . 39 253 133 . Average 143 | 2 28 16 35 300 293 88 . Influence Increases 2420 | 50 357 50 263 1159 241 300 . Destroy 0b10 Robot/C 1300 | . 140 40 160 740 140 80 . Destroy 0b10 Robot/NC 165 | 50 25 . 30 35 20 5 . Destroy Leader 330 | . 42 10 42 186 50 . . Allied During Kill 2 | . . . . . . 2 . Successful Hack 54 | . 7 . 30 . . 17 . Select Force Hacks 240 | . 60 . . . . 180 . Disable Machine 45 | . . . . 15 30 . . Destroy Structure 14 | . 8 . 1 3 1 1 . Lose Combat Pursuer 270 | . 75 . . 180 . 15 . Influence Decreases 2420 | 40 313 104 170 651 498 644 . Entered New Map 650 | . 4 33 . 54 348 211 . Time Decay 1640 | 40 299 51 170 517 130 433 . Lost Part 130 | . 10 20 . 80 20 . . Squads Dispatched 13 | . 4 . 1 7 1 . . Investigation 5 | . 3 . 1 1 . . . Extermination . | . . . . . . . . Reinforcement 4 | . 1 . . 2 1 . . Assault 1 | . . . . 1 . . . Garrison 3 | . . . . 3 . . . Intercept . | . . . . . . . . Searches Triggered . | . . . . . . . . Construction Impeded . | . . . . . . . . Haulers Reinforced . | . . . . . . . . Active Scanning Responses . | . . . . . . . . Cargo Convoy Interrupts . | . . . . . . . . Stealth | -11 -10 -10 -9 -8 -8 -8 -8 --------- Run | Yrd Mat Min Mat Mat Sto Rec Scr Distress Signals 6 | . 1 . 3 2 . . . Communications Jammed . | . . . . . . . . Distress Signals . | . . . . . . . . Times Spotted 145 | . 25 14 10 55 8 6 27 Peak Tracking Total 40 | . 5 17 5 8 4 4 40 Tactical Retreats 13 | . 2 2 . 8 . 1 . Traps | -11 -10 -10 -9 -8 -8 -8 -8 ------- Run | Yrd Mat Min Mat Mat Sto Rec Scr Traps Triggered 5 | . 1 . . 1 2 . 1 Indirectly . | . . . . . . . . Trap Hack Attempts . | . . . . . . . . Triggered . | . . . . . . . . Disarmed . | . . . . . . . . Reprogrammed . | . . . . . . . . Reused . | . . . . . . . . Traps Extracted . | . . . . . . . . Installed 2 | . . . . . . . 2 Triggered . | . . . . . . . . Most Traps Carried 1 | . . . . . . . 1 Machines | -11 -10 -10 -9 -8 -8 -8 -8 ---------- Run | Yrd Mat Min Mat Mat Sto Rec Scr Machines Disabled 3 | . . . . 1 2 . . Max in Single Turn 2 | . . . . 1 2 . . Machines Repaired . | . . . . . . . . Machines Dismantled . | . . . . . . . . Machines Sabotaged . | . . . . . . . . Overloaded Fab Kills . | . . . . . . . . Hacking | -11 -10 -10 -9 -8 -8 -8 -8 --------- Run | Yrd Mat Min Mat Mat Sto Rec Scr Machines Accessed 30 | . 9 . 2 4 2 11 2 Terminals 17 | . 6 . 1 3 2 5 . Fabricators . | . . . . . . . . Repair Stations 1 | . 1 . . . . . . Recycling Units 8 | . 2 . . . . 6 . Scanalyzers 1 | . . . 1 . . . . Garrison Access 1 | . . . . 1 . . . Total Hacks 69 | . 25 . 8 8 3 23 2 Successful 41 | . 12 . 8 1 1 17 2 Failed 27 | . 13 . . 7 2 5 . Catastrophic 5 | . . . . 3 1 1 . Database Lockouts 1 | . . . . . . 1 . Manual 44 | . 18 . . 5 3 18 . Terminals 45 | . 18 . 2 6 3 16 . Fabricators . | . . . . . . . . Repair Stations 2 | . 2 . . . . . . Recycling Units 12 | . 5 . . . . 7 . Scanalyzers 6 | . . . 6 . . . . Garrison Access 2 | . . . . 2 . . . Terminal Hacks 11 | . 1 . 2 1 1 4 2 Record 1 | . . . . . . . 1 Part Schematic 2 | . . . . . . 2 . Prototype ID Bank 1 | . . . . . . 1 . Open Door 1 | . . . . . 1 . . Branch Access Points 2 | . . . . 1 . 1 . Locate Traps 2 | . 1 . 1 . . . . Zone Layout 1 | . . . 1 . . . . Proto ID Catalog 1 | . . . . . . . 1 Fabricator Hacks . | . . . . . . . . Repair Station Hacks 2 | . 2 . . . . . . Scan Component 1 | . 1 . . . . . . Repair 1 | . 1 . . . . . . Recycling Unit Hacks 1 | . . . . . . 1 . Report Inventory 1 | . . . . . . 1 . Scanalyzer 6 | . . . 6 . . . . Insert Component 3 | . . . 3 . . . . Analyze 3 | . . . 3 . . . . Garrison Access Hacks . | . . . . . . . . Unauthorized Hacks 21 | . 9 . . . . 12 . Terminals 13 | . 7 . . . . 6 . Botnet 2 | . 1 . . . . 1 . Operators 1 | . 1 . . . . . . Skim 10 | . 5 . . . . 5 . Fabricators . | . . . . . . . . Repair Stations . | . . . . . . . . Recycling Units 8 | . 2 . . . . 6 . Tunnel 8 | . 2 . . . . 6 . Scanalyzers . | . . . . . . . . Garrison Access . | . . . . . . . . Data Cores Recovered 1 | . . . . . 1 . . Used 1 | . . . . . 1 . . Hacking Detections 21 | . 8 . 2 3 3 5 . Full Trace Events 3 | . 1 . 1 1 . . . Feedback Events 1 | . . . 1 . . . . Corruption 1 | . . . 1 . . . . Feedback Blocked . | . . . . . . . . Robot Schematics Acquired . | . . . . . . . . Robots Built . | . . . . . . . . Authchips . | . . . . . . . . Time . | . . . . . . . . Total Robot Build Rating . | . . . . . . . . Part Schematics Acquired 6 | . . . 3 . . 2 1 Parts Built . | . . . . . . . . Authchips . | . . . . . . . . Time . | . . . . . . . . Total Part Build Rating . | . . . . . . . . Parts Repaired 1 | . 1 . . . . . . Time 26 | . 26 . . . . . . Parts Recycled . | . . . . . . . . Recycled Matter . | . . . . . . . . Retrieved Matter . | . . . . . . . . Retrieved Components . | . . . . . . . . Parts Scanalyzed 3 | . . . 3 . . . . Part Schematics Acquired 3 | . . . 3 . . . . Parts Damaged . | . . . . . . . . Bothacking | -11 -10 -10 -9 -8 -8 -8 -8 ------------ Run | Yrd Mat Min Mat Mat Sto Rec Scr Used RIF Installer . | . . . . . . . . Robots Hacked 2 | . . . . . . . 2 Non-combat . | . . . . . . . . Combat 2 | . . . . . . . 2 Robot Hacks Applied 2 | . . . . . . . 2 parse_system 2 | . . . . . . . 2 Relay Couplers Released . | . . . . . . . . Fabnet Peak Effective % . | . . . . . . . . Robots Rewired 10 | . . . . . . 10 . Allies Hacked . | . . . . . . . . Hacks Repelled . | . . . . . . . . Allies | -11 -10 -10 -9 -8 -8 -8 -8 -------- Run | Yrd Mat Min Mat Mat Sto Rec Scr Total Allies 10 | . . . . . . 10 . Largest Group 10 | . . . . . . 10 10 Highest-Rated Group 174 | . . . . . . 174 174 Highest-Rated Ally 34 | . . . . . . 34 34 Total Orders 3 | . . . . . . 2 1 STAY 2 | . . . . . . 1 1 FOLLOW 1 | . . . . . . 1 . Ally Attacks 2 | . . . . . . . 2 Total Damage 248 | . . . . . . . 248 Kills 1 | . . . . . . . 1 Allies Corrupted . | . . . . . . . . Allies Melted . | . . . . . . . . Intel | -11 -10 -10 -9 -8 -8 -8 -8 ------- Run | Yrd Mat Min Mat Mat Sto Rec Scr Active Infowar (turns) 2145 | 164 987 166 499 329 . . . Terrain 2 | . . . 2 . . . . Seismic 2145 | 164 987 166 499 329 . . . Robot Analysis Total . | . . . . . . . . Derelict Logs Recovered . | . . . . . . . . Drone Launches . | . . . . . . . . Drone Recoveries . | . . . . . . . . Exploration | -11 -10 -10 -9 -8 -8 -8 -8 ------------- Run | Yrd Mat Min Mat Mat Sto Rec Scr Turns Passed 7242 | 238 987 166 499 1528 263 1096 2465 Spaces Moved 4268 | 92 489 81 206 656 148 767 1829 Core 54 | 4 . 37 4 . . . 9 Treads 1001 | 88 489 44 . 379 1 . . Legs 459 | . . . 202 257 . . . Wheels 2754 | . . . . 20 147 767 1820 Hover . | . . . . . . . . Flight . | . . . . . . . . Fastest Speed 50 | 50 160 50 50 110 93 93 50 Average Speed 132 | 155 160 109 128 148 103 121 127 Slowest Speed 240 | 160 160 160 130 240 240 123 190 Overloaded Moves . | . . . . . . . . Propulsion Burnouts . | . . . . . . . . Robots Hopped . | . . . . . . . . Potential Cave-ins 4 | . . 4 . . . . . Cave-ins Triggered . | . . . . . . . . Exploration Rate (%) 48 | 6 77 17 18 57 27 97 91 Regions Visited 7 Branch Regions 4 Pre-discovered Areas 11 | . 2 . . . . 8 1 Known Exits Taken 1 | . . . . 1 . . . Unknown Exits Taken 6 | 1 1 1 1 . 1 1 . Scrap Searched 9 | . . 2 . . . . 7 Spaces Dug 2 | . . . 1 . 1 . . Terrain Destroyed 8 | . 6 . 1 . 1 . . Melee 2 | . . . 1 . 1 . . Projectile . | . . . . . . . . AOE 6 | . 6 . . . . . . Terrain Rammed . | . . . . . . . . Walls Destroyed . | . . . . . . . . Machines Disabled . | . . . . . . . . Actions | -11 -10 -10 -9 -8 -8 -8 -8 --------- Run | Yrd Mat Min Mat Mat Sto Rec Scr Total 5341 | 144 625 131 370 990 211 906 1964 Wait 533 | 17 90 28 89 133 17 57 102 Move 4261 | 91 488 80 205 655 147 766 1829 Hop . | . . . . . . . . Pick Up 54 | 8 3 . 10 20 1 8 4 Fast Attach 48 | 7 2 . 11 17 10 . 1 Attach 9 | . 1 1 1 3 . . 3 Detach 3 | . 1 . 1 . . . 1 Swap 51 | . 1 . 3 27 6 8 6 Drop 66 | 1 2 2 11 31 5 1 13 Fire 224 | 20 34 11 21 103 23 12 . Melee 23 | . . . 18 . 2 . 3 Ram 1 | . . 1 . . . . . Kick . | . . . . . . . . Crush 12 | . 3 8 . 1 . . . Escape Stasis . | . . . . . . . . Rewire 54 | . . . . . . 54 . Trap 2 | . . . . . . . 2 Miscellaneous . | . . . . . . . . Route ------- -11/Scrapyard -10/Materials (discovered 3 exits: *Mat / [*Min x2]) -10/Mines -9/Materials -8/Materials (discovered 4 exits: [*Fac x2] / *Sto x2) -8/Storage -8/Recycling (discovered 2 exits: [*Fac] / *Scr) -8/Scraptown (discovered 1 exit: [*Fac]) History --------- Turn | Location | Event 44 | -11/Scrapyard | Discovered new exit (range 16) 239 | -11/Scrapyard | Entered Materials 333 | -10/Materials | Build established: Mutant 407 | -10/Materials | Discovered new exit (range 15) 512 | -10/Materials | Discovered new exit (range 15) 587 | -10/Materials | Discovered new exit (range 16) 988 | -10/Materials | Repaired Lgt. Treads 1226 | -10/Materials | Entered Mines 1343 | -10/Mines | Assembled infested the area 1348 | -10/Mines | Assisted by a Guerilla fighting off Assembled 1353 | -10/Mines | Core integrity fell below 50% 1358 | -10/Mines | Core integrity fell below 20% 1385 | -10/Mines | Discovered new exit (range 14) 1392 | -10/Mines | Entered Materials 1392 | -9/Materials | Evolved 2 slots: Propulsion x1, Utility x1 1887 | -9/Materials | Discovered new exit (range 4) 1891 | -9/Materials | Entered another Materials area 1891 | -8/Materials | Evolved 2 slots: Propulsion x1, Weapon x1 2314 | -8/Materials | Build established: Tank 2614 | -8/Materials | Discovered new exit (range 5) 2635 | -8/Materials | Identified exit to Storage 2654 | -8/Materials | Garrison activated, responded to threat 3091 | -8/Materials | First assault squad dispatched 3114 | -8/Materials | Discovered new exit (range 4) 3401 | -8/Materials | Lost 7 parts (3n2u2w) 3419 | -8/Materials | Entered Storage 3681 | -8/Storage | Used back door to open Recycling access 3681 | -8/Storage | Discovered new exit (range 3) 3682 | -8/Storage | Entered Recycling 3899 | -8/Recycling | Discovered new exit (range 5) 4035 | -8/Recycling | Core integrity fell below 50% 4109 | -8/Recycling | Build established: Scavenger-Gunner 4351 | -8/Recycling | Learned Factory security intel 4404 | -8/Recycling | Learned location of 1 exit from Lower Caves 4445 | -8/Recycling | Learned location of Extension (-5) 4474 | -8/Recycling | Learned 2 Storage zone layouts 4494 | -8/Recycling | Learned Storage security intel 4502 | -8/Recycling | Learned location of Zion (-7) 4580 | -8/Recycling | Learned Factory security intel 4720 | -8/Recycling | Scanned before Scraplab entrance 4739 | -8/Recycling | Entered Scraplab 4750 | -8/Recycling | Discovered new exit (range 3) 4778 | -8/Recycling | Entered Scraptown 4778 | -8/Scraptown | Accompanied by 10 allies 4778 | -8/Scraptown | System corruption cleaned by C-Scrubber 4922 | -8/Scraptown | Build established: Commander-Mutant 5186 | -8/Scraptown | Discovered new exit (range 5) 5333 | -8/Scraptown | Visited Comm Corps 5389 | -8/Scraptown | Visited The Evicted 5426 | -8/Scraptown | Visited UFD Registry 5426 | -8/Scraptown | Registered with UFD as "Shocklauncher" 5444 | -8/Scraptown | Visited IN-MT5's Study 5654 | -8/Scraptown | Visited Bundlers 5728 | -8/Scraptown | Visited Awakened 5765 | -8/Scraptown | Visited Symbiants 5790 | -8/Scraptown | Visited Cave Peace 5897 | -8/Scraptown | Visited Cartography Club 5918 | -8/Scraptown | Visited LU-1G1's Boring Crew 5972 | -8/Scraptown | Visited Scrap Suit Storage 6015 | -8/Scraptown | Visited Infowarlord's Domain 6026 | -8/Scraptown | Visited Junk Repository 6064 | -8/Scraptown | Visited Derelict Rescue Squad 6095 | -8/Scraptown | Visited Scrapoid Research Area 6251 | -8/Scraptown | Visited Science Guys 6293 | -8/Scraptown | Visited Curators Association 6334 | -8/Scraptown | Visited Chapter 10 6467 | -8/Scraptown | Found Exp. Terrain Scanner 6781 | -8/Scraptown | Warned about trapping Scraptown 7212 | -8/Scraptown | Attacked by Scraptown defenders 7243 | -8/Scraptown | Core integrity fell below 20% 7243 | -8/Scraptown | Destroyed by Optimus with Helical Railgun Last Messages --------------- 07237_ Knocked back. 07237_ Dropped Huge Storage Unit. 07237_ Slug penetrates 8L-Z5G(c). 07237_ Machine disabled. 07237_ Bolt penetrates Wall. 07237_ Dropped Lgt. Angular Momentum Engine. 07238_ P8-0AV(h): "Are you the baddie?" 07238_ Penetrated by Bolt. 07238_ Dropped Powered Hammer. 07238_ Com. Wheel destroyed. 07240_ C4-COM(p): "Yet another abomination from the caves." 07240_ Bolt penetrates Machine. 07240_ Penetrated by Slug. 07240_ Lgt. Treads destroyed. 07240_ Penetrated by Slug. 07240_ Bolt penetrates Machine. 07240_ Penetrated by Bolt. 07240_ DH-YE5(r) destroyed. 07241_ Powered Hammer destroyed. 07243_ Penetrated by Slug. Map ----- +----------------------------------------------------+ | # #?#"! "?????????????????????????????????? | | """ # #?#" "#???# #######????????????????????? | | "#" # #?## X##### # #????????????????????? | | """ # #?#"! !"## # #????????????????????? | | #?#"! !"## # #????????????????????? | | ###### #?#"! !"## # #????????????????????? | | # #?#"! !"## # #????????????????????? | | # #?#"! !"## # #????????????????????? | | # #?## ### # #????????????????????? | | #?# ## # #????????????????????? | | ## #####?##### ##### ## ####????????????????????? | | ## ########### ##### ## #########???????????????? | | "" """"""""""" """"" E"" "## !!#???????????????? | | "## [#???????????????? | | jj "## ####???????????????? | | [ "## #???????????????? | | [/ "## *!#???????????????? | | [ [#???????????????? | | """""""""""""""""" " "## ####???????????????? | | """"""""""""""""""" "## !#???????????????? | | ################""x "## ]!#???????????????? | | ##????????#"" c"##############?????????? | | X"#????????#"" "## """"""""#?????????? | | "" ##????#####"" ## " " " "#?????????? | | "" X"#????# "" [ ;; "#?????????? | | " #######== ]=%! @## &"#?????????? | | "" %/% j%%*!x & &"#?????????? | | "" /!hErE j=% #; ""#?????????? | | " ###### h " h3p% ## " " " "#?????????? | | "" ""#???#### #" j=c* ## """"""""#?????????? | | "" ##????????#"h!%p ;#############?????????? | | X"#????????# r= % "## """ """ #?????????? | | ##????????# /!!!% ## " """"" #?????????? | | ################""!!]! "## """ #?????????? | | """"""""""""""""""""p!!* "## #?????????? | | """""""""""""""""""]!&!! "#?????????? | | *!!! "## ""#?????????? | | E ## """ "#?????????? | | "## """"" ""#?????????? | | ## """ "#?????????? | | #############?????????? | | """" """""""""" """"" ##?????????????????????? | | #### ########### ###### #??????????????????????? | | "#" # #??????????????????????? | | "" ""## "# #??????????????????????? | | =" "]##"" "" " # #??????????????????????? | | "" ""##"" "" " # #??????????????????????? | | "#"" ^# #??????????????????????? | | "" ""##"""" ""# ############???????????? | | !" "!##""" """"# #???????????? | +----------------------------------------------------+ Best States ------------- Heat Dissipation 50 Energy Generation 18 Energy Capacity 275 Matter Stores 300 Matter Capacity 300 Sight Range 16 Terrain Scan Density 10 Armor Coverage 600 Utility Shielding 66 Weapon Cycling 15 Evasion (%) 55 Recoil Reduction 4 Offensive Hacking 20 Authchip Count 3 Item Schematics ----------------- Shock Bomb Launcher | -9/Materials | Scanalyzed Seismic Detector | -9/Materials | Scanalyzed Imp. Utility Shielding | -9/Materials | Scanalyzed Cryofiber Web | -8/Recycling | Hacked Imp. Shield Generator | -8/Recycling | Hacked IN-MT5's Pitchfork "Insurrection" | -8/Scraptown | Archive Robot Schematics ------------------ None Fabricated ------------ Nothing Repaired ---------- Lgt. Treads | 60% | -10/Materials Alien Tech Used ----------------- None Achievements -------------- None Challenges ------------ None Game ------ Seed MappingShadingRigger Manual? 0 Play Time 00:50:59 Cumulative 578.4 hours Start 2025.08.13 @ 12:45:12 End 2025.08.13 @ 13:50:55 Sessions 3 Manual Loads 0 Difficulty Rogue Special Mode None Game No. 331 Rogue 306 Adventurer 7 Explorer 18 Win Type - Total 47 Types 30/0/8/2/0/1/1/3/0/2 Lore% 95 Gallery% 91 Achievement% 82 Wizard Run 0 Options --------- Layout 0 ASCII 0 Keyboard 0 Movement Numpad Keybinds 0 Fullscreen 1 Font 12/Smallcaps Map View 83x54 Zoom Use 0% Tactical HUD 1 Map Filters NONE Filters NONE Steam 1 RUN: 9321d598-fac7-4df9-bc0f-2db2d2923864